fUST/lending_fUST_20241031
["ID","MTS","AMOUNT","RATE_DAILY","PERIOD"]
[341078392,1730347750834,-500.0,0.00030612,5]
[341078393,1730347750858,-360.12300983,0.00030613,7]
[341078394,1730347750880,-503.36606878,0.00030613,5]
[341078395,1730347750912,-507.6628427,0.00030613,5]
[341078396,1730347750937,-502.68179726,0.00030613,5]
[341078397,1730347750959,-502.87046759,0.00030613,5]
[341078398,1730347750982,-510.36127574,0.00030613,5]
[341078399,1730347751004,-507.19278943,0.00030613,5]
[341078400,1730347751026,-504.45992166,0.00030613,5]
[341078401,1730347751052,-500.0,0.00030613,5]
[341078402,1730347751075,-500.0,0.00030613,5]
[341078403,1730347751096,-519.29886813,0.00030613,5]
[341078404,1730347751118,-500.0,0.00030613,5]
[341078405,1730347751139,-507.84697184,0.00030613,5]
[341078406,1730347751161,-503.83556806,0.00030613,5]
[341078407,1730347751182,-500.0,0.00030613,5]
[341078408,1730347751204,-500.0,0.00030613,5]
[341078409,1730347751228,-503.00498847,0.00030613,5]
[341078410,1730347751249,-500.0,0.00030613,5]
[341078411,1730347751271,-502.44103221,0.00030613,5]
[341078412,1730347751291,-557.48151533,0.00030613,5]
[341078413,1730347751315,-503.33441378,0.00030613,5]
[341078414,1730347751339,-505.96593977,0.00030613,5]
[341078415,1730347751362,-588.48534649,0.00030613,5]
[341078416,1730347751382,-503.44529143,0.00030613,5]
[341078417,1730347751403,-502.95923493,0.00030613,5]
[341078418,1730347751424,-500.0,0.00030613,5]
[341078419,1730347751445,-502.41426177,0.00030613,5]
[341078420,1730347751467,-512.56934827,0.00030613,5]
[341078421,1730347751488,-500.0,0.00030613,5]
[341078422,1730347751509,-500.0,0.00030613,5]
[341078423,1730347751532,-511.89234429,0.00030613,5]
[341078424,1730347751556,-509.08695984,0.00030613,5]
[341078425,1730347751586,-504.3385338,0.00030613,5]
[341078426,1730347751609,-501.35574382,0.00030613,2]
[341078427,1730347751632,-502.00915825,0.00030613,5]
[341078428,1730347751655,-500.0,0.00030613,5]
[341078429,1730347751677,-509.47908847,0.00030613,5]
[341078430,1730347751700,-505.7854692,0.00030613,5]
[341078431,1730347751723,-503.97402451,0.00030613,5]
[341078432,1730347751747,-524.60869457,0.00030613,5]
[341078433,1730347751770,-500.0,0.00030613,5]
[341078434,1730347751792,-500.0,0.00030613,5]
[341078435,1730347751933,-500.0,0.00030613,5]
[341078436,1730347751956,-503.4530655,0.00030613,5]
[341078437,1730347751976,-509.37982159,0.00030613,5]
[341078438,1730347751997,-500.0,0.00030613,5]
[341078439,1730347752019,-500.0,0.00030613,5]
[341078440,1730347752041,-500.0,0.00030613,5]
[341078441,1730347752064,-500.0,0.00030613,5]
[341078442,1730347752084,-507.12290152,0.00030613,5]
[341078443,1730347752105,-500.0,0.00030613,5]
[341078444,1730347752125,-500.0,0.00030613,5]
[341078445,1730347752146,-509.95529434,0.00030613,5]
[341078446,1730347752168,-500.0,0.00030613,5]
[341078447,1730347752189,-506.59869035,0.00030613,5]
[341078448,1730347752209,-500.0,0.00030613,5]
[341078449,1730347752234,-500.0,0.00030613,5]
[341078450,1730347752254,-511.97720403,0.00030613,5]
[341078451,1730347752276,-500.0,0.00030613,5]
[341078452,1730347752297,-500.0,0.00030613,5]
[341078453,1730347752318,-500.0,0.00030613,5]
[341078454,1730347752338,-500.0,0.00030613,5]
[341078455,1730347752358,-502.40630207,0.00030613,5]
[341078456,1730347752379,-504.30674065,0.00030613,5]
[341078457,1730347752400,-500.0,0.00030613,5]
[341078458,1730347752421,-500.0,0.00030613,5]
[341078459,1730347752442,-500.0,0.00030613,5]
[341078460,1730347752463,-504.36273805,0.00030613,5]
[341078461,1730347752484,-503.79066594,0.00030613,5]
[341078462,1730347752505,-506.05908803,0.00030613,5]
[341078463,1730347752528,-503.8740193,0.00030613,5]
[341078464,1730347752550,-500.0,0.00030613,5]
[341078465,1730347752573,-500.0,0.00030613,5]
[341078466,1730347752594,-500.0,0.00030613,5]
[341078467,1730347752615,-500.97319714,0.00030613,5]
[341078468,1730347752638,-500.0,0.00030613,5]
[341078469,1730347752660,-500.0,0.00030613,5]
[341078470,1730347752680,-503.62508402,0.00030613,5]
[341078471,1730347752702,-500.0,0.00030613,5]
[341078472,1730347752723,-500.0,0.00030613,5]
[341078473,1730347752744,-509.34204559,0.00030613,5]
[341078474,1730347752765,-506.50913648,0.00030613,5]
[341078475,1730347752788,-502.05157068,0.00030613,5]
[341078476,1730347752809,-500.0,0.00030613,5]
[341078477,1730347752830,-502.67147391,0.00030613,5]
[341078478,1730347752855,-500.0,0.00030613,5]
[341078479,1730347752876,-500.0,0.00030613,5]
[341078480,1730347752896,-500.6296908,0.00030613,5]
[341078481,1730347752919,-500.0,0.00030613,5]
[341078482,1730347752939,-500.0,0.00030613,5]
[341078483,1730347752960,-500.0,0.00030613,5]
[341078484,1730347752980,-503.52631861,0.00030613,5]
[341078485,1730347753001,-502.65469212,0.00030613,5]
[341078486,1730347753027,-500.0,0.00030613,5]
[341078487,1730347753050,-506.81952075,0.00030613,5]
[341078488,1730347753072,-500.0,0.00030613,5]
[341078489,1730347753093,-622.47976531,0.00030613,5]
[341078490,1730347753113,-508.76060272,0.00030613,5]
[341078491,1730347753134,-500.0,0.00030613,5]
[341078492,1730347753156,-502.26142754,0.00030613,5]
[341078493,1730347753177,-500.0,0.00030613,5]
[341078494,1730347753199,-501.53960984,0.00030613,5]
[341078495,1730347753221,-500.0,0.00030613,5]
[341078496,1730347753255,-504.76564892,0.00030613,5]
[341078497,1730347753282,-502.4116821,0.00030613,5]
[341078498,1730347753304,-2307.35,0.00030613,5]
[341078499,1730347753324,-501.5048774,0.00030613,5]
[341078500,1730347753345,-500.0,0.00030613,5]
[341078501,1730347753367,-500.0,0.00030613,5]
[341078502,1730347753388,-503.83272439,0.00030613,5]
[341078503,1730347753410,-509.49678911,0.00030613,5]
[341078504,1730347753432,-506.63174893,0.00030613,5]
[341078505,1730347753457,-500.0,0.00030613,5]
[341078506,1730347753479,-500.0,0.00030613,5]
[341078507,1730347753500,-500.0,0.00030613,5]
[341078508,1730347753525,-500.0,0.00030613,5]
[341078509,1730347753547,-500.0,0.00030613,5]
[341078510,1730347753568,-500.0,0.00030613,5]
[341078511,1730347753589,-504.39,0.00030613,5]
[341078512,1730347753611,-500.0,0.00030613,5]
[341078513,1730347753634,-500.0,0.00030613,5]
[341078514,1730347753657,-508.86273862,0.00030613,5]
[341078515,1730347753679,-509.09193813,0.00030613,5]
[341078516,1730347753701,-500.0,0.00030613,5]
[341078517,1730347753725,-500.0,0.00030613,5]
[341078518,1730347753749,-508.80802351,0.00030613,5]
[341078519,1730347753771,-513.64,0.00030613,5]
[341078520,1730347753791,-500.0,0.00030613,5]
[341078521,1730347753813,-792.45,0.00030613,5]
[341078522,1730347753836,-507.49052576,0.00030613,5]
[341078523,1730347753859,-620.75638873,0.00030613,5]
[341078524,1730347753880,-500.0,0.00030613,5]
[341078525,1730347753901,-500.0,0.00030613,5]
[341078526,1730347753930,-500.0,0.00030613,5]
[341078527,1730347753952,-500.0,0.00030613,5]
[341078528,1730347753973,-500.0,0.00030613,5]
[341078529,1730347753994,-500.0,0.00030613,5]
[341078530,1730347754016,-588.71056608,0.00030613,5]
[341078531,1730347754038,-501.88851,0.00030613,5]
[341078533,1730347754060,-500.0,0.00030613,5]
[341078535,1730347754081,-500.0,0.00030613,5]
[341078536,1730347754212,-500.0,0.00030613,5]
[341078537,1730347754241,-9065.81,0.00030613,3]
[341078538,1730347754263,-500.0,0.00030613,5]
[341078539,1730347754287,-525.30519893,0.00030613,2]
[341078540,1730347754310,-502.48831575,0.00030613,5]
[341078541,1730347754333,-500.0,0.00030613,5]
[341078542,1730347754356,-504.74443695,0.00030613,5]
[341078543,1730347754378,-1052.83,0.00030613,5]
[341078544,1730347754399,-502.56363669,0.00030613,5]
[341078545,1730347754422,-500.0,0.00030613,5]
[341078546,1730347754446,-658.0,0.00030613,5]
[341078547,1730347754467,-500.0,0.00030613,5]
[341078548,1730347754488,-517.9541837,0.00030613,5]
[341078549,1730347754511,-500.0,0.00030613,5]
[341078550,1730347754536,-500.0,0.00030613,5]
[341078551,1730347754561,-500.0,0.00030613,5]
[341078552,1730347754589,-500.0,0.00030613,5]
[341078553,1730347754612,-500.0,0.00030613,2]
[341078554,1730347754633,-500.0,0.00030613,5]
[341078555,1730347754656,-507.37764022,0.00030613,5]
[341078556,1730347754678,-501.87271358,0.00030613,5]
[341078557,1730347754699,-502.40125035,0.00030613,5]
[341078558,1730347754720,-500.0,0.00030613,5]
[341078559,1730347754745,-572.60189525,0.00030613,5]
[341078560,1730347754769,-500.0,0.00030613,5]
[341078561,1730347754789,-500.0,0.00030613,5]
[341078562,1730347754811,-619.37,0.00030613,2]
[341078563,1730347754834,-500.0,0.00030613,5]
[341078564,1730347754857,-500.0,0.00030613,5]
[341078565,1730347754878,-500.0,0.00030613,5]
[341078566,1730347754902,-500.0,0.00030613,5]
[341078567,1730347754928,-500.0,0.00030613,5]
[341078568,1730347754953,-500.0,0.00030613,5]
[341078569,1730347754975,-5545.99,0.00030613,5]
[341078570,1730347754998,-500.0,0.00030613,5]
[341078571,1730347755021,-500.0,0.00030613,5]
[341078572,1730347755045,-500.0,0.00030613,5]
[341078573,1730347755067,-509.43374245,0.00030613,5]
[341078574,1730347755089,-508.10033179,0.00030613,5]
[341078575,1730347755113,-500.0,0.00030613,5]
[341078576,1730347755137,-505.72146903,0.00030613,5]
[341078577,1730347755159,-503.57990519,0.00030613,5]
[341078578,1730347755180,-517.23528017,0.00030613,5]
[341078579,1730347755202,-500.0,0.00030613,5]
[341078580,1730347755225,-535.5494832,0.00030613,5]
[341078581,1730347755247,-500.0,0.00030613,5]
[341078582,1730347755270,-500.27252673,0.00030613,5]
[341078583,1730347755293,-825.52604054,0.00030613,5]
[341078584,1730347755315,-606.14847352,0.00030613,5]
[341078585,1730347755350,-500.0,0.00030613,5]
[341078586,1730347755381,-502.52418725,0.00030613,5]
[341078587,1730347755409,-501.90034348,0.00030613,5]
[341078588,1730347755437,-500.69766252,0.00030613,5]
[341078589,1730347755465,-502.33571336,0.00030613,5]
[341078590,1730347755494,-502.29234257,0.00030613,5]
[341078591,1730347755523,-500.0,0.00030613,5]
[341078592,1730347755552,-500.0,0.00030613,5]
[341078593,1730347755597,-500.0,0.00030613,5]
[341078594,1730347755632,-502.9552502,0.00030613,5]
[341078595,1730347755669,-500.0,0.00030613,5]
[341078596,1730347755703,-500.0,0.00030613,5]
[341078597,1730347755735,-431.57306774,0.00030613,5]
[341078598,1730347756302,171.99574,0.00013973,2]
[341078599,1730347756383,-68.42693226,0.00030613,5]
[341078600,1730347756412,-502.80695568,0.00030613,5]
[341078601,1730347756433,-502.48312042,0.00030613,5]
[341078602,1730347756455,-500.0,0.00030613,5]
[341078603,1730347756477,-501.88497006,0.00030613,5]
[341078604,1730347756499,-500.0,0.00030613,5]
[341078605,1730347756652,-500.0,0.00030613,5]
[341078606,1730347756676,-500.0,0.00030613,5]
[341078607,1730347756699,-506.93291273,0.00030613,5]
[341078608,1730347756722,-508.39961586,0.00030613,5]
[341078609,1730347756742,-501.35309016,0.00030613,5]
[341078610,1730347756764,-530.39487803,0.00030613,5]
[341078611,1730347756785,-509.12181872,0.00030613,5]
[341078612,1730347756807,-1002.38540635,0.00030613,5]
[341078613,1730347756831,-503.84931165,0.00030613,5]
[341078614,1730347756853,-395.05108197,0.00030613,5]
[341078615,1730347757135,-104.94891803,0.00030613,5]
[341078616,1730347757158,-500.0,0.00030613,5]
[341078617,1730347757179,-504.10522225,0.00030613,5]
[341078618,1730347757201,-500.0,0.00030613,5]
[341078619,1730347757222,-500.0,0.00030613,5]
[341078620,1730347757243,-500.0,0.00030613,5]
[341078621,1730347757264,-500.0,0.00030613,5]
[341078622,1730347757285,-500.0,0.00030613,5]
[341078623,1730347757305,-502.73112421,0.00030613,5]
[341078624,1730347757326,-500.0,0.00030613,5]
[341078625,1730347757350,-500.0,0.00030613,5]
[341078626,1730347757373,-508.49581255,0.00030613,5]
[341078627,1730347757392,-608.84118996,0.00030613,5]
[341078628,1730347757414,-500.0,0.00030613,5]
[341078629,1730347757436,-512.99849986,0.00030613,5]
[341078630,1730347757457,-509.71927564,0.00030613,5]
[341078631,1730347757477,-500.0,0.00030613,5]
[341078632,1730347757499,-500.0,0.00030613,5]
[341078633,1730347757524,-509.3909967,0.00030613,5]
[341078634,1730347757546,-751.25,0.00030613,5]
[341078635,1730347757568,-500.0,0.00030613,5]
[341078636,1730347757590,-500.0,0.00030613,5]
[341078637,1730347757613,-500.0,0.00030613,5]
[341078638,1730347757635,-500.0,0.00030613,5]
[341078639,1730347757657,-493.84986234,0.00030613,5]
[341078640,1730347757677,-500.0,0.00030613,5]
[341078641,1730347757698,-500.0,0.00030613,5]
[341078642,1730347757719,-505.80227143,0.00030613,5]
[341078643,1730347757741,-504.24108823,0.00030613,5]
[341078644,1730347757762,-503.30626945,0.00030613,5]
[341078645,1730347757783,-511.24344209,0.00030613,5]
[341078646,1730347757804,-500.0,0.00030613,5]
[341078647,1730347757826,-500.0,0.00030613,5]
[341078648,1730347757847,-500.8171012,0.00030613,5]
[341078649,1730347757867,-500.9794322,0.00030613,5]
[341078650,1730347757887,-501.53152678,0.00030613,5]
[341078651,1730347757908,-500.0,0.00030613,5]
[341078652,1730347757931,-500.0,0.00030613,5]
[341078653,1730347757955,-500.0,0.00030613,5]
[341078654,1730347757976,-500.0,0.00030613,5]
[341078655,1730347757997,-500.0,0.00030613,5]
[341078656,1730347758017,-505.42379159,0.00030613,5]
[341078657,1730347758040,-507.67911227,0.00030613,5]
[341078658,1730347758063,-500.0,0.00030613,5]
[341078659,1730347758084,-500.0,0.00030613,5]
[341078660,1730347758108,-514.83,0.00030613,5]
[341078661,1730347758130,-500.0,0.00030613,5]
[341078662,1730347758152,-514.44266412,0.00030613,5]
[341078663,1730347758174,-502.0263834,0.00030613,5]
[341078664,1730347758197,-500.0,0.00030613,5]
[341078665,1730347758218,-503.07145176,0.00030613,5]
[341078666,1730347758241,-500.0,0.00030613,5]
[341078667,1730347758262,-500.0,0.00030613,5]
[341078668,1730347758284,-506.59243451,0.00030613,5]
[341078669,1730347758305,-502.06194082,0.00030613,5]
[341078670,1730347758326,-500.0,0.00030613,5]
[341078671,1730347758347,-502.72808741,0.00030613,5]
[341078672,1730347758368,-504.09424743,0.00030613,5]
[341078673,1730347758389,-502.98397746,0.00030613,5]
[341078674,1730347758410,-505.14022615,0.00030613,5]
[341078675,1730347758431,-500.0,0.00030613,5]
[341078676,1730347758452,-511.01265342,0.00030613,5]
[341078677,1730347758474,-503.08796966,0.00030613,5]
[341078678,1730347758495,-502.84119003,0.00030613,5]
[341078679,1730347758524,-500.0,0.00030613,5]
[341078680,1730347758546,-500.0,0.00030613,5]
[341078681,1730347758569,-503.4381573,0.00030613,5]
[341078682,1730347758595,-500.0,0.00030613,5]
[341078683,1730347758619,-502.04497251,0.00030613,5]
[341078684,1730347758641,-500.0,0.00030613,5]
[341078685,1730347758664,-508.10154612,0.00030613,5]
[341078686,1730347758686,-502.92034233,0.00030613,5]
[341078687,1730347758711,-500.0,0.00030613,5]
[341078688,1730347758733,-500.0,0.00030613,5]
[341078689,1730347758757,-500.0,0.00030613,5]
[341078690,1730347758780,-500.0,0.00030613,5]
[341078691,1730347758804,-160.0,0.00030614,10]
[341078692,1730347758828,-538.7187451,0.00030614,5]
[341078693,1730347758856,-500.0,0.00030614,5]
[341078694,1730347758880,-500.0,0.00030614,5]
[341078695,1730347758904,-500.0,0.00030614,5]
[341078696,1730347758928,-500.0,0.00030614,5]
[341078697,1730347758951,-500.0,0.00030614,5]
[341078698,1730347758977,-500.0,0.00030614,5]
[341078699,1730347758999,-619.37,0.00030614,2]
[341078700,1730347759020,-619.37,0.00030614,2]
[341078701,1730347759042,-619.37,0.00030614,2]
[341078702,1730347759066,-619.37,0.00030614,2]
[341078703,1730347759088,-619.37,0.00030614,2]
[341078704,1730347759112,-619.37,0.00030614,2]
[341078705,1730347759135,-500.0,0.00030615,5]
[341078706,1730347759158,-506.14842396,0.00030615,5]
[341078707,1730347759180,-501.86172139,0.00030615,5]
[341078708,1730347759202,-502.65459726,0.00030615,5]
[341078709,1730347759225,-501.36254274,0.00030615,5]
[341078710,1730347759247,-502.6458022,0.00030615,5]
[341078711,1730347759269,-505.91918646,0.00030615,5]
[341078712,1730347759292,-502.74527115,0.00030615,5]
[341078713,1730347759314,-378.6700337,0.00030615,5]
[341078714,1730347759338,-502.83970058,0.00030615,5]
[341078715,1730347759360,-502.09292435,0.00030615,5]
[341078716,1730347759381,-558.37326568,0.00030615,5]
[341078717,1730347759402,-503.90658173,0.00030615,5]
[341078718,1730347759424,-506.09665091,0.00030615,5]
[341078719,1730347759445,-503.79045199,0.00030615,5]
[341078720,1730347759466,-504.15101354,0.00030615,5]
[341078721,1730347759488,-501.82585977,0.00030615,5]
[341078722,1730347759509,-502.28241544,0.00030615,5]
[341078723,1730347759532,-503.58185941,0.00030615,5]
[341078724,1730347759553,-510.03052161,0.00030615,5]
[341078725,1730347759575,-502.89961759,0.00030615,5]
[341078726,1730347759596,-513.248286,0.00030615,5]
[341078727,1730347759701,-504.27833559,0.00030615,5]
[341078728,1730347759729,-500.0,0.00030615,2]
[341078729,1730347759750,-500.0,0.00030615,5]
[341078730,1730347759771,-506.25010152,0.00030615,5]
[341078731,1730347759798,-500.0,0.00030615,5]
[341078732,1730347759819,-500.0,0.00030615,5]
[341078733,1730347759843,-500.0,0.00030615,5]
[341078734,1730347759865,-503.15602645,0.00030615,5]
[341078735,1730347759885,-500.0,0.00030615,5]
[341078736,1730347759906,-504.95958288,0.00030615,5]
[341078737,1730347759927,-500.0,0.00030615,5]
[341078738,1730347759950,-507.17951078,0.00030615,5]
[341078739,1730347759973,-469.55418464,0.00030615,5]
[341078740,1730347763844,1124.23284667,0.00029,7]
[341078741,1730347771147,-880.76715333,0.00029,7]
[341078742,1730347802874,194.2327896,0.00028126,2]
[341078743,1730347819481,179.120642,0.00028816,2]
[341078775,1730347832464,-162.0,0.00030611,2]
[341078776,1730347832474,-400.0,0.00030611,2]
[341078777,1730347832484,-500.0,0.00030612,5]
[341078778,1730347832495,-1067.95,0.00030612,3]
[341078779,1730347834813,202.70147,0.000291,120]
[341078801,1730347840969,-266.47535616,0.00030612,3]
[341078803,1730347843793,-1465.07385744,0.00030612,3]
[341078804,1730347843807,-5888.5607864,0.00030612,3]
[341078805,1730347843816,-500.0,0.00030612,5]
[341078806,1730347843826,-1008.97,0.00030612,5]
[341078807,1730347843836,-500.0,0.00030612,5]
[341078808,1730347843847,-500.0,0.00030612,5]
[341078809,1730347843857,-500.0,0.00030612,5]
[341078810,1730347843867,-500.0,0.00030613,5]
[341078811,1730347843878,-500.0,0.00030613,5]
[341078812,1730347843888,-500.0,0.00030613,5]
[341078813,1730347843898,-500.0,0.00030613,5]
[341078814,1730347843907,-827.29,0.00030613,5]
[341078815,1730347843918,-630.58,0.00030613,5]
[341078816,1730347843928,-500.0,0.00030613,5]
[341078817,1730347843938,-1606.97,0.00030613,5]
[341078818,1730347843948,-500.0,0.00030613,5]
[341078819,1730347843959,-500.0,0.00030613,2]
[341078820,1730347843969,-5314.91,0.00030613,5]
[341078821,1730347843980,-500.0,0.00030613,5]
[341078822,1730347843990,-30.44581536,0.00030615,5]
[341078823,1730347844000,-501.94038012,0.00030615,5]
[341078824,1730347844010,-500.0,0.00030615,5]
[341078825,1730347844020,-500.0,0.00030615,5]
[341078826,1730347844030,-500.0,0.00030615,5]
[341078827,1730347844042,-513.32397946,0.00030615,5]
[341078828,1730347844052,-495.0,0.00030615,5]
[341078829,1730347844063,-510.93430715,0.00030615,5]
[341078830,1730347844074,-500.0,0.00030615,5]
[341078831,1730347844085,-500.0,0.00030615,5]
[341078832,1730347844097,-500.0,0.00030673,5]
[341078833,1730347844108,-502.98996408,0.00030673,5]
[341078834,1730347844118,-500.0,0.00030673,5]
[341078835,1730347844128,-500.0,0.00030673,2]
[341078836,1730347844138,-500.0,0.00030673,5]
[341078837,1730347844149,-500.0,0.00030716,2]
[341078838,1730347844159,-500.0,0.00030873,5]
[341078839,1730347844168,-500.0,0.00030873,5]
[341078840,1730347844178,-512.28540659,0.00030873,5]
[341078841,1730347844188,-223.91984279,0.00030873,5]
[341078842,1730347844197,-501.19686716,0.00030873,5]
[341078843,1730347844206,-160.0,0.00030886,10]
[341078844,1730347844216,-160.71063772,0.00030886,10]
[341078845,1730347844225,-1404.05,0.00030886,5]
[341078846,1730347844234,-500.0,0.00030886,5]
[341078847,1730347844244,-3914.01,0.00030886,5]
[341078848,1730347844255,-500.0,0.00030886,5]
[341078849,1730347844265,-500.0,0.00030886,5]
[341078850,1730347844276,-500.0,0.00030886,5]
[341078851,1730347844286,-8688.06,0.00030886,3]
[341078852,1730347844298,-500.0,0.00030886,5]
[341078853,1730347844308,-1008.97,0.00030886,5]
[341078854,1730347844317,-500.0,0.00030886,5]
[341078855,1730347844326,-500.0,0.00030886,5]
[341078856,1730347844338,-500.0,0.00030886,5]
[341078857,1730347844348,-240.08200656,0.00030886,7]
[341078858,1730347844358,-160.0,0.00030887,10]
[341078859,1730347844368,-370.31186494,0.00030887,5]
[341078860,1730347844378,-500.0,0.00030887,5]
[341078861,1730347844387,-500.0,0.00030887,5]
[341078862,1730347844397,-500.0,0.00030887,5]
[341078863,1730347844407,-500.0,0.00030887,5]
[341078864,1730347844417,-436.89668452,0.00030887,5]
[341078865,1730347844427,-500.0,0.00030887,5]
[341078866,1730347844436,-500.0,0.00030887,5]
[341078867,1730347844446,-500.0,0.00030887,5]
[341078868,1730347844456,-521.08506662,0.00030887,5]
[341078869,1730347844466,-500.0,0.00030887,5]
[341078870,1730347844476,-500.0,0.00030887,5]
[341078871,1730347844487,-500.0,0.00030887,5]
[341078872,1730347844497,-500.0,0.00030887,5]
[341078873,1730347844506,-553.07315355,0.00030887,5]
[341078874,1730347844516,-500.0,0.00030887,5]
[341078875,1730347844526,-619.37,0.00030887,2]
[341078876,1730347844537,-500.0,0.00030887,5]
[341078877,1730347844547,-500.0,0.00030887,5]
[341078878,1730347844559,-500.0,0.00030887,5]
[341078879,1730347844568,-500.0,0.00030887,5]
[341078880,1730347844578,-500.0,0.00030887,5]
[341078881,1730347844588,-500.0,0.00030887,5]
[341078882,1730347844599,-500.0,0.00030887,5]
[341078883,1730347844608,-751.25,0.00030887,5]
[341078884,1730347844621,-500.0,0.00030887,5]
[341078885,1730347844631,-500.0,0.00030887,5]
[341078886,1730347844640,-500.0,0.00030887,5]
[341078887,1730347844650,-500.0,0.00030887,5]
[341078888,1730347844661,-500.0,0.00030887,5]
[341078889,1730347844671,-514.83,0.00030887,5]
[341078890,1730347844680,-500.0,0.00030887,5]
[341078891,1730347844690,-500.0,0.00030887,5]
[341078892,1730347844701,-500.0,0.00030887,5]
[341078893,1730347844710,-500.0,0.00030887,5]
[341078894,1730347844719,-827.29,0.00030887,5]
[341078895,1730347844729,-630.58,0.00030887,5]
[341078896,1730347844739,-525.7005503,0.00030887,5]
[341078897,1730347844748,-1606.97,0.00030887,5]
[341078898,1730347844758,-500.0,0.00030887,5]
[341078899,1730347844768,-500.0,0.00030887,2]
[341078900,1730347844778,-5314.91,0.00030887,5]
[341078901,1730347844789,-619.37,0.00030888,2]
[341078902,1730347844799,-500.0,0.00030889,2]
[341078903,1730347844809,-500.0,0.00030889,5]
[341078904,1730347844818,-500.0,0.00030889,5]
[341078905,1730347844828,-500.0,0.00030889,5]
[341078906,1730347844838,-195.23660179,0.00031159,2]
[341078907,1730347844848,-1404.05,0.0003116,5]
[341078908,1730347844858,-500.0,0.0003116,5]
[341078909,1730347844868,-3914.01,0.0003116,5]
[341078910,1730347844878,-500.0,0.0003116,5]
[341078911,1730347844888,-500.0,0.0003116,5]
[341078912,1730347844897,-500.0,0.0003116,5]
[341078913,1730347844907,-8688.06,0.0003116,3]
[341078914,1730347844917,-500.0,0.0003116,5]
[341078915,1730347844928,-151.0,0.0003116,7]
[341078916,1730347844941,-151.0,0.0003116,7]
[341078917,1730347844952,-1008.97,0.0003116,5]
[341078918,1730347844963,-151.0,0.0003116,7]
[341078919,1730347844973,-500.0,0.0003116,5]
[341078920,1730347844984,-500.0,0.0003116,5]
[341078921,1730347844995,-371.265771,0.0003116,7]
[341078922,1730347845007,-371.265771,0.0003116,7]
[341078923,1730347845017,-500.0,0.0003116,5]
[341078924,1730347845027,-500.0,0.00031161,5]
[341078925,1730347845043,-500.0,0.00031161,5]
[341078926,1730347845056,-500.0,0.00031161,5]
[341078927,1730347845066,-500.0,0.00031161,5]
[341078928,1730347845075,-196.06923042,0.00031161,5]
[341078929,1730347845085,-500.0,0.00031161,5]
[341078930,1730347845095,-515.80049739,0.00031161,5]
[341078931,1730347845105,-500.0,0.00031161,5]
[341078932,1730347845114,-500.0,0.00031161,5]
[341078933,1730347845124,-462.4932391,0.00031161,5]
[341078934,1730347845133,-500.0,0.00031161,5]
[341078935,1730347845142,-386.83917651,0.00031161,5]
[341078936,1730347845152,-619.37,0.00031161,2]
[341078937,1730347845161,-500.0,0.00031161,5]
[341078938,1730347845171,-151.0,0.00031161,7]
[341078939,1730347845181,-500.0,0.00031161,5]
[341078940,1730347845196,-151.0,0.00031161,7]
[341078941,1730347845207,-500.0,0.00031161,5]
[341078942,1730347845216,-500.0,0.00031161,5]
[341078943,1730347845227,-500.0,0.00031161,5]
[341078944,1730347845237,-152.072693,0.00031161,7]
[341078945,1730347845247,-500.0,0.00031161,5]
[341078946,1730347845256,-151.0,0.00031161,7]